[Event "Live Chess"]
[Site "Chess.com"]
[Date "2023.05.20"]
[Round "-"]
[White "ProfPoisson"]
[Black "Richardallis"]
[Result "0-1"]
[WhiteElo "1130"]
[BlackElo "1908"]
[TimeControl "300"]
[EndTime "14:35:34 PDT"]
[Termination "Richardallis won on time"]

1. e4 {[%clk 0:04:54.8]} 1... d5 {[%clk 0:04:58.9]} 2. exd5 {[%clk 0:04:52.9]}
2... Nf6 {[%clk 0:04:58.4]} 3. d4 {[%clk 0:04:48.7]} 3... Nxd5 {[%clk
0:04:57.6]} 4. Nf3 {[%clk 0:04:45.4]} 4... Bg4 {[%clk 0:04:56.1]} 5. Be2 {[%clk
0:04:42.5]} 5... c6 {[%clk 0:04:55.2]} 6. O-O {[%clk 0:04:39.7]} 6... e6 {[%clk
0:04:54.3]} 7. c4 {[%clk 0:04:36.5]} 7... Nf6 {[%clk 0:04:53.2]} 8. Bg5 {[%clk
0:04:31.5]} 8... Nbd7 {[%clk 0:04:51.5]} 9. Nc3 {[%clk 0:04:22.6]} 9... Bd6
{[%clk 0:04:50.1]} 10. c5 {[%clk 0:04:15.5]} 10... Be7 {[%clk 0:04:49]} 11. b4
{[%clk 0:04:10.3]} 11... h6 {[%clk 0:04:45.4]} 12. Bf4 {[%clk 0:03:53.5]} 12...
a6 {[%clk 0:04:36.8]} 13. Ne5 {[%clk 0:03:36.3]} 13... Bxe2 {[%clk 0:04:32.9]}
14. Qxe2 {[%clk 0:03:32]} 14... Nxe5 {[%clk 0:04:31.2]} 15. dxe5 {[%clk
0:03:27.3]} 15... Nd5 {[%clk 0:04:29.4]} 16. Rad1 {[%clk 0:03:22]} 16... O-O
{[%clk 0:04:24.6]} 17. Nxd5 {[%clk 0:03:13.9]} 17... exd5 {[%clk 0:04:18]} 18.
Qg4 {[%clk 0:03:10]} 18... Kh7 {[%clk 0:04:12.4]} 19. Rfe1 {[%clk 0:03:03.1]}
19... Qc8 {[%clk 0:03:59.1]} 20. Qf3 {[%clk 0:02:45.6]} 20... Qf5 {[%clk
0:03:54.4]} 21. g4 {[%clk 0:02:19.9]} 21... Qe6 {[%clk 0:03:49.8]} 22. Kh1
{[%clk 0:02:06.9]} 22... g5 {[%clk 0:03:47.1]} 23. Qd3+ {[%clk 0:02:02]} 23...
Qg6 {[%clk 0:03:43.8]} 24. Bg3 {[%clk 0:01:54.8]} 24... Kg7 {[%clk 0:03:36.1]}
25. Qxg6+ {[%clk 0:01:50]} 25... Kxg6 {[%clk 0:03:33.8]} 26. e6 {[%clk
0:01:47.5]} 26... f6 {[%clk 0:03:31.8]} 27. Bd6 {[%clk 0:01:42.5]} 27... Rfe8
{[%clk 0:03:29.4]} 28. Rd4 {[%clk 0:01:27.8]} 28... Rad8 {[%clk 0:03:26.4]} 29.
f4 {[%clk 0:01:03.2]} 29... Bxd6 {[%clk 0:03:23.4]} 30. cxd6 {[%clk 0:00:59.9]}
30... Rxd6 {[%clk 0:03:22]} 31. f5+ {[%clk 0:00:58.6]} 31... Kg7 {[%clk
0:03:18.7]} 32. h3 {[%clk 0:00:55.2]} 32... Re7 {[%clk 0:03:15]} 33. Kg2 {[%clk
0:00:53.7]} 33... Rd8 {[%clk 0:03:11.3]} 34. Kg3 {[%clk 0:00:52.2]} 34... Rh8
{[%clk 0:03:09.5]} 35. h4 {[%clk 0:00:48.3]} 35... Rd8 {[%clk 0:03:03.8]} 36. a4
{[%clk 0:00:37.9]} 36... Rc7 {[%clk 0:02:59.6]} 37. hxg5 {[%clk 0:00:24.8]}
37... hxg5 {[%clk 0:02:57.6]} 38. Rd2 {[%clk 0:00:18.7]} 38... Rh8 {[%clk
0:02:56.1]} 39. Rh2 {[%clk 0:00:16.1]} 39... Rxh2 {[%clk 0:02:54.1]} 40. Kxh2
{[%clk 0:00:14.9]} 40... Re7 {[%clk 0:02:52.9]} 41. Kg3 {[%clk 0:00:12.6]} 41...
Re8 {[%clk 0:02:51.8]} 42. e7 {[%clk 0:00:09.9]} 42... Kf7 {[%clk 0:02:50.5]}
43. Re6 {[%clk 0:00:06.1]} 43... Rxe7 {[%clk 0:02:49]} 44. Rxe7+ {[%clk
0:00:05]} 44... Kxe7 {[%clk 0:02:48]} 45. Kf3 {[%clk 0:00:04.5]} 45... Kd6
{[%clk 0:02:47]} 46. Ke3 {[%clk 0:00:03.4]} 46... Ke5 {[%clk 0:02:46.5]} 0-1

[Event "Live Chess"]
[Site "Chess.com"]
[Date "2023.05.20"]
[Round "-"]
[White "Duke_of_Bebington"]
[Black "Conradical12"]
[Result "0-1"]
[WhiteElo "1573"]
[BlackElo "1587"]
[TimeControl "300"]
[EndTime "14:35:35 PDT"]
[Termination "Conradical12 won by resignation"]

1. e4 {[%clk 0:04:58.3]} 1... e5 {[%clk 0:04:57.5]} 2. Nf3 {[%clk 0:04:55.7]}
2... Nc6 {[%clk 0:04:56.8]} 3. Bc4 {[%clk 0:04:53.7]} 3... Nf6 {[%clk
0:04:56.2]} 4. d3 {[%clk 0:04:49.1]} 4... Bc5 {[%clk 0:04:55]} 5. O-O {[%clk
0:04:46.9]} 5... Ng4 {[%clk 0:04:54.4]} 6. Nc3 {[%clk 0:04:36.3]} 6... d6 {[%clk
0:04:51.4]} 7. h3 {[%clk 0:04:32.9]} 7... h5 {[%clk 0:04:50]} 8. Bg5 {[%clk
0:04:18.1]} 8... f6 {[%clk 0:04:42]} 9. Bd2 {[%clk 0:04:11]} 9... Qe7 {[%clk
0:04:36]} 10. hxg4 {[%clk 0:04:08]} 10... hxg4 {[%clk 0:04:34.3]} 11. Nh2 {[%clk
0:04:04.7]} 11... f5 {[%clk 0:04:31.6]} 12. g3 {[%clk 0:03:57.5]} 12... Rh3
{[%clk 0:04:23.5]} 13. Kg2 {[%clk 0:03:55]} 13... Be6 {[%clk 0:04:07.2]} 14.
Bxe6 {[%clk 0:03:42.8]} 14... Qxe6 {[%clk 0:04:05.8]} 15. Rh1 {[%clk 0:03:31.3]}
15... O-O-O {[%clk 0:04:04.4]} 16. Be3 {[%clk 0:03:26.3]} 16... Bxe3 {[%clk
0:04:01]} 17. fxe3 {[%clk 0:03:24.9]} 17... Rdh8 {[%clk 0:03:57.2]} 18. Qg1
{[%clk 0:03:22.5]} 18... fxe4 {[%clk 0:03:53.2]} 19. Nxe4 {[%clk 0:03:18.6]}
19... d5 {[%clk 0:03:52.5]} 20. Nf2 {[%clk 0:03:13.7]} 20... R3h5 {[%clk
0:03:44.3]} 21. Nfxg4 {[%clk 0:03:07.1]} 21... e4 {[%clk 0:03:40.9]} 22. d4
{[%clk 0:02:53.8]} 22... Nb4 {[%clk 0:03:37.3]} 23. c3 {[%clk 0:02:47.9]} 23...
Nd3 {[%clk 0:03:35.3]} 24. b3 {[%clk 0:02:28.9]} 24... Qc6 {[%clk 0:03:33.3]}
25. Rc1 {[%clk 0:02:12.3]} 25... Nxc1 {[%clk 0:03:31.5]} 26. Qxc1 {[%clk
0:02:10.4]} 26... Qb5 {[%clk 0:03:30.4]} 27. Qc2 {[%clk 0:02:01.7]} 27... a5
{[%clk 0:03:05.1]} 28. Rf1 {[%clk 0:01:45.3]} 28... Rxh2+ {[%clk 0:02:39.6]} 29.
Nxh2 {[%clk 0:01:42.2]} 29... Rxh2+ {[%clk 0:02:38.1]} 30. Kxh2 {[%clk
0:01:40.2]} 30... Qxf1 {[%clk 0:02:37.6]} 31. Qg2 {[%clk 0:01:29.9]} 31... Qf5
{[%clk 0:02:35.8]} 32. g4 {[%clk 0:01:26.8]} 32... Qg5 {[%clk 0:02:34.7]} 33.
Qg3 {[%clk 0:01:24.8]} 33... Kd7 {[%clk 0:02:32.8]} 34. Qf4 {[%clk 0:01:22.6]}
34... Qh4+ {[%clk 0:02:30.9]} 35. Kg2 {[%clk 0:01:19.8]} 35... g5 {[%clk
0:02:25.6]} 36. Qf5+ {[%clk 0:01:13.5]} 36... Kc6 {[%clk 0:02:23.3]} 37. Qe6+
{[%clk 0:01:11.1]} 37... Kb5 {[%clk 0:02:20]} 38. Qxd5+ {[%clk 0:01:10]} 38...
Ka6 {[%clk 0:02:18.9]} 39. Qxe4 {[%clk 0:01:04.2]} 39... c6 {[%clk 0:02:17.9]}
40. Qf3 {[%clk 0:00:56.7]} 40... Kb5 {[%clk 0:02:15]} 41. Qh3 {[%clk 0:00:54.2]}
41... Qe1 {[%clk 0:02:12.2]} 42. c4+ {[%clk 0:00:46.8]} 42... Kb4 {[%clk
0:02:10.7]} 43. Qf3 {[%clk 0:00:41.8]} 43... Qd2+ {[%clk 0:02:07.4]} 44. Qf2
{[%clk 0:00:40.1]} 44... Qd1 {[%clk 0:02:02.8]} 45. Kg3 {[%clk 0:00:36.3]} 45...
Kc3 {[%clk 0:01:59.2]} 46. Qf3 {[%clk 0:00:21.6]} 46... Qg1+ {[%clk 0:01:56.1]}
47. Qg2 {[%clk 0:00:17.4]} 47... Qxe3+ {[%clk 0:01:54.6]} 48. Kh2 {[%clk
0:00:17.3]} 48... Qf4+ {[%clk 0:01:51.8]} 49. Qg3+ {[%clk 0:00:16.2]} 49...
Qxg3+ {[%clk 0:01:50.8]} 50. Kxg3 {[%clk 0:00:16.1]} 50... Kxd4 {[%clk 0:01:50]}
51. Kf3 {[%clk 0:00:15.8]} 51... Kc3 {[%clk 0:01:49.6]} 52. Ke4 {[%clk 0:00:15]}
52... Kb2 {[%clk 0:01:49]} 53. Kf5 {[%clk 0:00:14.9]} 53... Kxa2 {[%clk
0:01:48.1]} 54. Kxg5 {[%clk 0:00:14.8]} 54... Kxb3 {[%clk 0:01:47.5]} 55. Kf5
{[%clk 0:00:14.7]} 55... a4 {[%clk 0:01:45.9]} 56. g5 {[%clk 0:00:14.6]} 56...
a3 {[%clk 0:01:45.6]} 57. g6 {[%clk 0:00:14.5]} 57... a2 {[%clk 0:01:45.2]} 58.
g7 {[%clk 0:00:14.4]} 58... a1=Q {[%clk 0:01:44]} 59. g8=Q {[%clk 0:00:14.3]}
59... Qf1+ {[%clk 0:01:40.9]} 60. Ke6 {[%clk 0:00:12.9]} 60... Qxc4+ {[%clk
0:01:38.9]} 61. Kd6 {[%clk 0:00:12.2]} 61... Qxg8 {[%clk 0:01:38.8]} 0-1

[Event "Live Chess"]
[Site "Chess.com"]
[Date "2023.05.20"]
[Round "-"]
[White "xx_blindpuffin_xx"]
[Black "Rusty_Bridges"]
[Result "1-0"]
[WhiteElo "2194"]
[BlackElo "1432"]
[TimeControl "300"]
[EndTime "14:35:37 PDT"]
[Termination "xx_blindpuffin_xx won by resignation"]

1. d4 {[%clk 0:04:58.6]} 1... d5 {[%clk 0:04:58.4]} 2. Bf4 {[%clk 0:04:56.8]}
2... Bf5 {[%clk 0:04:56.3]} 3. e3 {[%clk 0:04:55.9]} 3... e6 {[%clk 0:04:55.3]}
4. Nf3 {[%clk 0:04:54.3]} 4... Nd7 {[%clk 0:04:53.9]} 5. h3 {[%clk 0:04:53.3]}
5... c5 {[%clk 0:04:52.7]} 6. c3 {[%clk 0:04:52.1]} 6... Be7 {[%clk 0:04:47]} 7.
Nbd2 {[%clk 0:04:46.9]} 7... Ngf6 {[%clk 0:04:44.1]} 8. Be2 {[%clk 0:04:45]}
8... Ne4 {[%clk 0:04:42.6]} 9. O-O {[%clk 0:04:43.6]} 9... O-O {[%clk
0:04:39.1]} 10. dxc5 {[%clk 0:04:40.7]} 10... Ndxc5 {[%clk 0:04:33.2]} 11. c4
{[%clk 0:04:36.9]} 11... Nxd2 {[%clk 0:04:22.2]} 12. Qxd2 {[%clk 0:04:33.3]}
12... Ne4 {[%clk 0:04:19.1]} 13. Qd1 {[%clk 0:04:24.5]} 13... dxc4 {[%clk
0:04:14.6]} 14. Bxc4 {[%clk 0:04:06.5]} 14... Rc8 {[%clk 0:03:54.3]} 15. Bb3
{[%clk 0:03:46.2]} 15... g5 {[%clk 0:03:40.9]} 16. Be5 {[%clk 0:03:41.6]} 16...
f6 {[%clk 0:03:38.4]} 17. Bh2 {[%clk 0:03:33.1]} 17... g4 {[%clk 0:03:35]} 18.
Nh4 {[%clk 0:03:30.8]} 18... Kh8 {[%clk 0:03:06.7]} 19. hxg4 {[%clk 0:03:26.7]}
19... Bg6 {[%clk 0:02:56.2]} 20. Bxe6 {[%clk 0:03:24]} 20... Rc6 {[%clk
0:02:38.3]} 21. Bf5 {[%clk 0:03:19.9]} 21... Bxf5 {[%clk 0:02:35.9]} 22. Nxf5
{[%clk 0:03:19.6]} 22... Bc5 {[%clk 0:02:32.7]} 23. Qa4 {[%clk 0:03:08.1]} 23...
a6 {[%clk 0:02:15.7]} 24. Rad1 {[%clk 0:03:06.2]} 24... Qc8 {[%clk 0:02:08.6]}
25. Qxe4 {[%clk 0:03:04.6]} 1-0

[Event "Live Chess"]
[Site "Chess.com"]
[Date "2023.05.20"]
[Round "-"]
[White "WilliamofOrange16th"]
[Black "FailsGambits"]
[Result "1-0"]
[WhiteElo "1839"]
[BlackElo "1320"]
[TimeControl "300"]
[EndTime "14:35:51 PDT"]
[Termination "WilliamofOrange16th won by resignation"]

1. e4 {[%clk 0:04:57.6]} 1... e5 {[%clk 0:04:59.6]} 2. Nf3 {[%clk 0:04:56.1]}
2... Nc6 {[%clk 0:04:58.9]} 3. Bc4 {[%clk 0:04:55.2]} 3... Be7 {[%clk
0:04:51.9]} 4. d4 {[%clk 0:04:06.4]} 4... exd4 {[%clk 0:04:48.7]} 5. c3 {[%clk
0:04:04.9]} 5... Nf6 {[%clk 0:04:34.2]} 6. e5 {[%clk 0:04:02.2]} 6... Ng8 {[%clk
0:04:23.1]} 7. cxd4 {[%clk 0:03:58.8]} 7... d5 {[%clk 0:04:19.3]} 8. Be2 {[%clk
0:03:43.6]} 8... f6 {[%clk 0:04:17.6]} 9. Bf4 {[%clk 0:03:37.7]} 9... Bg4 {[%clk
0:04:10.6]} 10. h3 {[%clk 0:03:23.5]} 10... Bxf3 {[%clk 0:04:07.9]} 11. Bxf3
{[%clk 0:03:23.4]} 11... Qd7 {[%clk 0:03:48.3]} 12. O-O {[%clk 0:03:15]} 12...
g5 {[%clk 0:03:15]} 13. Bh5+ {[%clk 0:02:57.2]} 13... Kd8 {[%clk 0:03:08.6]} 14.
Bh2 {[%clk 0:02:54.6]} 14... Nh6 {[%clk 0:02:55.1]} 15. Nc3 {[%clk 0:02:51.6]}
15... Rf8 {[%clk 0:02:20.2]} 16. Bf3 {[%clk 0:02:39.7]} 16... fxe5 {[%clk
0:02:14.7]} 17. Nxd5 {[%clk 0:02:30.2]} 17... exd4 {[%clk 0:01:55.9]} 18. Nxe7
{[%clk 0:02:24.8]} 18... Qxe7 {[%clk 0:01:41.2]} 19. Bxc6 {[%clk 0:02:16.8]}
19... bxc6 {[%clk 0:01:37.8]} 20. Qxd4+ {[%clk 0:02:16.4]} 20... Qd7 {[%clk
0:01:34.3]} 21. Rfd1 {[%clk 0:02:13.9]} 21... Qxd4 {[%clk 0:01:33.7]} 22. Rxd4+
{[%clk 0:02:13.3]} 22... Kc8 {[%clk 0:01:33.2]} 23. Rc1 {[%clk 0:02:10.4]} 23...
Re8 {[%clk 0:01:21.1]} 24. Kf1 {[%clk 0:02:01]} 24... Rb8 {[%clk 0:01:15.7]} 25.
b3 {[%clk 0:01:59.6]} 25... Rb6 {[%clk 0:01:09.5]} 26. g4 {[%clk 0:01:56.9]}
26... Re5 {[%clk 0:00:59.4]} 27. Bxe5 {[%clk 0:01:51.5]} 1-0

[Event "Live Chess"]
[Site "Chess.com"]
[Date "2023.05.20"]
[Round "-"]
[White "OmeetAtara"]
[Black "Ferrarifan27"]
[Result "1-0"]
[WhiteElo "1813"]
[BlackElo "2059"]
[TimeControl "300"]
[EndTime "14:36:00 PDT"]
[Termination "OmeetAtara won by resignation"]

1. b3 {[%clk 0:04:57.5]} 1... d5 {[%clk 0:04:58.3]} 2. Bb2 {[%clk 0:04:57.4]}
2... Nc6 {[%clk 0:04:56.8]} 3. e3 {[%clk 0:04:57.3]} 3... e5 {[%clk 0:04:56.1]}
4. Nf3 {[%clk 0:04:57]} 4... Bd6 {[%clk 0:04:54.6]} 5. Bb5 {[%clk 0:04:56.3]}
5... Qe7 {[%clk 0:04:53.9]} 6. d4 {[%clk 0:04:54.4]} 6... e4 {[%clk 0:04:50.5]}
7. Ne5 {[%clk 0:04:53.7]} 7... Bxe5 {[%clk 0:04:49.7]} 8. dxe5 {[%clk
0:04:53.5]} 8... Be6 {[%clk 0:04:45.7]} 9. c4 {[%clk 0:04:51.1]} 9... Rd8 {[%clk
0:04:41.5]} 10. Qc2 {[%clk 0:04:48.8]} 10... Nh6 {[%clk 0:04:37]} 11. Nc3 {[%clk
0:04:46.4]} 11... O-O {[%clk 0:04:32.7]} 12. cxd5 {[%clk 0:04:43.8]} 12... Bxd5
{[%clk 0:04:31.8]} 13. Nxd5 {[%clk 0:04:43.4]} 13... Rxd5 {[%clk 0:04:28.9]} 14.
Bxc6 {[%clk 0:04:43.1]} 14... bxc6 {[%clk 0:04:27.3]} 15. Qxe4 {[%clk
0:04:42.3]} 15... f5 {[%clk 0:03:59.9]} 16. Qc4 {[%clk 0:04:39.2]} 16... Kh8
{[%clk 0:03:51.7]} 17. O-O {[%clk 0:04:17.4]} 17... Rc5 {[%clk 0:03:45.4]} 18.
Qb4 {[%clk 0:04:09.5]} 18... Rxe5 {[%clk 0:03:36.5]} 19. Qxe7 {[%clk 0:03:53.6]}
19... Rxe7 {[%clk 0:03:36.4]} 20. Ba3 {[%clk 0:03:52.3]} 20... Rfe8 {[%clk
0:03:30.6]} 21. Bxe7 {[%clk 0:03:50.1]} 21... Rxe7 {[%clk 0:03:30.5]} 22. Rac1
{[%clk 0:03:48.4]} 22... Re6 {[%clk 0:03:29.6]} 23. Rfd1 {[%clk 0:03:47.1]}
23... Kg8 {[%clk 0:03:24.2]} 24. Rd8+ {[%clk 0:03:45]} 24... Kf7 {[%clk
0:03:23.3]} 25. Rd7+ {[%clk 0:03:44.3]} 25... Kf6 {[%clk 0:03:22.8]} 26. Rxc7
{[%clk 0:03:43.4]} 26... Ng4 {[%clk 0:03:18]} 27. R7xc6 {[%clk 0:03:42.6]} 27...
Ne5 {[%clk 0:03:16]} 28. Rxe6+ {[%clk 0:03:41.5]} 28... Kxe6 {[%clk 0:03:15.6]}
29. Kf1 {[%clk 0:03:40.9]} 1-0

[Event "Live Chess"]
[Site "Chess.com"]
[Date "2023.05.20"]
[Round "-"]
[White "CeladonFish"]
[Black "Goblinbasher"]
[Result "1-0"]
[WhiteElo "1096"]
[BlackElo "1239"]
[TimeControl "300"]
[EndTime "14:36:25 PDT"]
[Termination "CeladonFish won on time"]

1. d4 {[%clk 0:04:59.2]} 1... f5 {[%clk 0:04:57.9]} 2. c4 {[%clk 0:04:58.8]}
2... e6 {[%clk 0:04:56.7]} 3. Nc3 {[%clk 0:04:57.6]} 3... Nf6 {[%clk 0:04:54.7]}
4. Nf3 {[%clk 0:04:38.4]} 4... Be7 {[%clk 0:04:52.9]} 5. Bg5 {[%clk 0:04:37.5]}
5... O-O {[%clk 0:04:51.4]} 6. e3 {[%clk 0:04:36.1]} 6... d6 {[%clk 0:04:49.5]}
7. Be2 {[%clk 0:04:34.9]} 7... Ne4 {[%clk 0:04:43.6]} 8. Bxe7 {[%clk 0:04:30.2]}
8... Qxe7 {[%clk 0:04:41]} 9. Nxe4 {[%clk 0:04:29.8]} 9... fxe4 {[%clk
0:04:39.9]} 10. Nd2 {[%clk 0:04:29.4]} 10... d5 {[%clk 0:04:38.3]} 11. Qb3
{[%clk 0:04:22.3]} 11... c6 {[%clk 0:04:31.1]} 12. O-O {[%clk 0:04:19.7]} 12...
Qg5 {[%clk 0:04:22.2]} 13. g3 {[%clk 0:04:12.4]} 13... e5 {[%clk 0:04:03.2]} 14.
cxd5 {[%clk 0:04:08.3]} 14... cxd5 {[%clk 0:03:48.7]} 15. Qxd5+ {[%clk
0:04:02.1]} 15... Kh8 {[%clk 0:03:46.6]} 16. dxe5 {[%clk 0:03:57.7]} 16... Rd8
{[%clk 0:03:39]} 17. Qc5 {[%clk 0:03:43]} 17... Nd7 {[%clk 0:03:26.3]} 18. Qc7
{[%clk 0:03:33.7]} 18... Nxe5 {[%clk 0:03:20.4]} 19. h4 {[%clk 0:03:28.3]} 19...
Qf6 {[%clk 0:02:56.1]} 20. Nxe4 {[%clk 0:03:26]} 20... Rd7 {[%clk 0:02:09.3]}
21. Qxd7 {[%clk 0:03:09.9]} 21... Bxd7 {[%clk 0:02:01]} 22. Nxf6 {[%clk
0:03:09.2]} 22... gxf6 {[%clk 0:01:59.9]} 23. f4 {[%clk 0:03:04.4]} 23... Nc6
{[%clk 0:01:54.1]} 24. Rfd1 {[%clk 0:03:03.1]} 24... Bf5 {[%clk 0:01:45.6]} 25.
Bd3 {[%clk 0:03:01.2]} 25... Bg4 {[%clk 0:01:42.2]} 26. Rdc1 {[%clk 0:02:59.7]}
26... Re8 {[%clk 0:01:38.3]} 27. e4 {[%clk 0:02:54.2]} 27... Kg7 {[%clk
0:01:35.7]} 28. f5 {[%clk 0:02:52.8]} 28... Bh5 {[%clk 0:01:26.7]} 29. Rc5
{[%clk 0:02:49.6]} 29... Ne5 {[%clk 0:01:19.7]} 30. Bc2 {[%clk 0:02:43.8]} 30...
Nf3+ {[%clk 0:01:10.1]} 31. Kf2 {[%clk 0:02:41.3]} 31... Nd4 {[%clk 0:00:57.2]}
32. Rc7+ {[%clk 0:02:35.6]} 32... Kh6 {[%clk 0:00:43.9]} 33. Ba4 {[%clk
0:02:33.5]} 33... Rxe4 {[%clk 0:00:39.6]} 34. Rxb7 {[%clk 0:02:27.4]} 34... Re2+
{[%clk 0:00:35.7]} 35. Kf1 {[%clk 0:02:23.7]} 35... Re3 {[%clk 0:00:29.2]} 36.
Kf2 {[%clk 0:02:06.4]} 36... Rf3+ {[%clk 0:00:22]} 37. Kg1 {[%clk 0:02:00.7]}
37... Ne2+ {[%clk 0:00:18.8]} 38. Kg2 {[%clk 0:01:56.3]} 38... Rxg3+ {[%clk
0:00:16.3]} 39. Kf2 {[%clk 0:01:54.4]} 39... Rg4 {[%clk 0:00:11.9]} 40. Re1
{[%clk 0:01:47.1]} 40... Rxa4 {[%clk 0:00:07.6]} 41. Rxe2 {[%clk 0:01:41.1]}
41... Bxe2 {[%clk 0:00:06.3]} 42. Kxe2 {[%clk 0:01:40.8]} 42... Re4+ {[%clk
0:00:05.4]} 43. Kd3 {[%clk 0:01:39.1]} 43... Rxh4 {[%clk 0:00:04.7]} 44. Rxa7
{[%clk 0:01:38.7]} 44... Rf4 {[%clk 0:00:03.9]} 45. b4 {[%clk 0:01:35.7]} 45...
Rxf5 {[%clk 0:00:03.1]} 46. b5 {[%clk 0:01:35.1]} 46... Rxb5 {[%clk 0:00:02]}
47. a4 {[%clk 0:01:34]} 47... Rd5+ {[%clk 0:00:00.3]} 48. Kc4 {[%clk 0:01:32.7]}
1-0

[Event "Live Chess"]
[Site "Chess.com"]
[Date "2023.05.20"]
[Round "-"]
[White "raminguy"]
[Black "chrisbradgate"]
[Result "1-0"]
[WhiteElo "1962"]
[BlackElo "861"]
[TimeControl "300"]
[EndTime "14:36:27 PDT"]
[Termination "raminguy won on time"]

1. d4 {[%clk 0:04:51.5]} 1... d5 {[%clk 0:04:58.3]} 2. Nc3 {[%clk 0:04:51]} 2...
Nf6 {[%clk 0:04:56.6]} 3. Bf4 {[%clk 0:04:50.7]} 3... a6 {[%clk 0:04:54.2]} 4.
e3 {[%clk 0:04:49.7]} 4... Nc6 {[%clk 0:04:52.1]} 5. Nf3 {[%clk 0:04:48.3]} 5...
h6 {[%clk 0:04:50.1]} 6. Ne5 {[%clk 0:04:47.1]} 6... Nxe5 {[%clk 0:04:49.2]} 7.
dxe5 {[%clk 0:04:46.2]} 7... Nd7 {[%clk 0:04:47.6]} 8. Nxd5 {[%clk 0:04:43.2]}
8... g5 {[%clk 0:04:32.1]} 9. Bg3 {[%clk 0:04:41.8]} 9... e6 {[%clk 0:04:27.2]}
10. Nc3 {[%clk 0:04:35.1]} 10... b6 {[%clk 0:04:22.9]} 11. a4 {[%clk 0:04:32.3]}
11... Bb7 {[%clk 0:04:21.8]} 12. h4 {[%clk 0:04:24.3]} 12... Bg7 {[%clk
0:04:08.9]} 13. hxg5 {[%clk 0:04:21.2]} 13... Qxg5 {[%clk 0:04:03]} 14. Bf4
{[%clk 0:04:07]} 14... Qe7 {[%clk 0:03:48.5]} 15. Qh5 {[%clk 0:03:57.4]} 15...
O-O-O {[%clk 0:03:43.8]} 16. O-O-O {[%clk 0:03:54.8]} 16... Nc5 {[%clk
0:03:37.1]} 17. Rxd8+ {[%clk 0:03:34.5]} 17... Qxd8 {[%clk 0:03:26.7]} 18. Qxf7
{[%clk 0:03:29.9]} 18... Qd7 {[%clk 0:03:15.1]} 19. Qxd7+ {[%clk 0:03:26.1]}
19... Kxd7 {[%clk 0:03:14.2]} 20. Be2 {[%clk 0:03:15.5]} 20... h5 {[%clk
0:02:44.7]} 21. Rxh5 {[%clk 0:03:05.9]} 21... Rxh5 {[%clk 0:02:43.1]} 22. Bxh5
{[%clk 0:03:05.8]} 22... Bxg2 {[%clk 0:02:33]} 23. b3 {[%clk 0:03:00.4]} 23...
Ne4 {[%clk 0:02:22.3]} 24. Nxe4 {[%clk 0:02:56.3]} 24... Bxe4 {[%clk 0:02:20.8]}
25. Be2 {[%clk 0:02:51.7]} 25... Bd5 {[%clk 0:02:09]} 26. Bxa6 {[%clk
0:02:46.5]} 26... Be4 {[%clk 0:02:00.4]} 27. Bb5+ {[%clk 0:02:42.1]} 27... Ke7
{[%clk 0:01:50.9]} 28. Kd2 {[%clk 0:02:32]} 28... Bf5 {[%clk 0:01:36.3]} 29. Bd3
{[%clk 0:02:28]} 29... Bg4 {[%clk 0:01:25.3]} 30. Be2 {[%clk 0:02:26.3]} 30...
Bf5 {[%clk 0:01:24]} 31. f3 {[%clk 0:02:25.6]} 31... Bh3 {[%clk 0:01:14.6]} 32.
Bg5+ {[%clk 0:02:16.2]} 32... Kf7 {[%clk 0:01:11.2]} 33. f4 {[%clk 0:02:14.5]}
33... Bf5 {[%clk 0:01:05.8]} 34. Bd3 {[%clk 0:02:13]} 34... Bg4 {[%clk
0:01:04.1]} 35. Kc3 {[%clk 0:02:05.2]} 35... Bd1 {[%clk 0:00:57.8]} 36. Kb4
{[%clk 0:02:01.9]} 36... Ke8 {[%clk 0:00:46.8]} 37. Kb5 {[%clk 0:02:00]} 37...
Kd7 {[%clk 0:00:45.6]} 38. a5 {[%clk 0:01:58]} 38... bxa5 {[%clk 0:00:44.1]} 39.
Kxa5 {[%clk 0:01:56.9]} 39... Kc6 {[%clk 0:00:43.6]} 40. Be4+ {[%clk 0:01:52.3]}
40... Kd7 {[%clk 0:00:38]} 41. Kb5 {[%clk 0:01:49.2]} 41... Be2+ {[%clk
0:00:35.4]} 42. Kc5 {[%clk 0:01:47]} 42... Bf8+ {[%clk 0:00:28.8]} 43. Kd4
{[%clk 0:01:43.6]} 43... Bg7 {[%clk 0:00:19.9]} 44. c4 {[%clk 0:01:40.5]} 44...
Bf8 {[%clk 0:00:18.2]} 45. c5 {[%clk 0:01:39.2]} 45... c6 {[%clk 0:00:15.6]} 46.
b4 {[%clk 0:01:37.5]} 46... Bb5 {[%clk 0:00:09.4]} 47. Bg6 {[%clk 0:01:34.7]}
47... Bg7 {[%clk 0:00:06.9]} 48. e4 {[%clk 0:01:33.7]} 48... Bf8 {[%clk
0:00:05.7]} 49. f5 {[%clk 0:01:32.9]} 49... exf5 {[%clk 0:00:04.3]} 50. exf5
{[%clk 0:01:32.7]} 1-0

[Event "Live Chess"]
[Site "Chess.com"]
[Date "2023.05.20"]
[Round "-"]
[White "Jonmill"]
[Black "VovaOvchar1990"]
[Result "0-1"]
[WhiteElo "1236"]
[BlackElo "1231"]
[TimeControl "300"]
[EndTime "14:36:27 PDT"]
[Termination "VovaOvchar1990 won by resignation"]

1. e4 {[%clk 0:04:58.3]} 1... e5 {[%clk 0:04:58.8]} 2. Nc3 {[%clk 0:04:57.9]}
2... Bc5 {[%clk 0:04:58]} 3. Bc4 {[%clk 0:04:55.1]} 3... Nf6 {[%clk 0:04:57.3]}
4. d3 {[%clk 0:04:54.3]} 4... Nc6 {[%clk 0:04:56.7]} 5. f4 {[%clk 0:04:52.9]}
5... exf4 {[%clk 0:04:55.5]} 6. Bxf4 {[%clk 0:04:51.6]} 6... Nd4 {[%clk
0:04:53.8]} 7. Nf3 {[%clk 0:04:47]} 7... Nxf3+ {[%clk 0:04:52.3]} 8. Qxf3 {[%clk
0:04:46.1]} 8... O-O {[%clk 0:04:50.9]} 9. Bg5 {[%clk 0:04:40.6]} 9... h6 {[%clk
0:04:49]} 10. Bh4 {[%clk 0:04:39]} 10... Be7 {[%clk 0:04:46.9]} 11. O-O {[%clk
0:04:32]} 11... Ne8 {[%clk 0:04:32.7]} 12. Bxe7 {[%clk 0:04:21.8]} 12... Qxe7
{[%clk 0:04:31.5]} 13. Nd5 {[%clk 0:04:21.5]} 13... Qd8 {[%clk 0:04:26.8]} 14.
e5 {[%clk 0:03:26.8]} 14... c6 {[%clk 0:04:25.7]} 15. Ne3 {[%clk 0:03:21.7]}
15... d5 {[%clk 0:04:23.3]} 16. exd6 {[%clk 0:03:20.1]} 16... Nxd6 {[%clk
0:04:19.1]} 17. Bb3 {[%clk 0:03:10.8]} 17... a5 {[%clk 0:04:14.4]} 18. a4 {[%clk
0:03:08.3]} 18... b5 {[%clk 0:04:10.3]} 19. Ng4 {[%clk 0:02:54.6]} 19... bxa4
{[%clk 0:03:50.5]} 20. Rxa4 {[%clk 0:02:51.2]} 20... Nb5 {[%clk 0:03:39.3]} 21.
Bxf7+ {[%clk 0:02:44.8]} 21... Kh8 {[%clk 0:03:32.2]} 22. Rf4 {[%clk 0:02:12.8]}
22... Bxg4 {[%clk 0:03:21]} 23. Qxg4 {[%clk 0:02:10.9]} 23... Nd6 {[%clk
0:03:08]} 24. Be6 {[%clk 0:01:46.9]} 24... Rxf4 {[%clk 0:02:56.7]} 25. Rxf4
{[%clk 0:01:43.9]} 25... a4 {[%clk 0:02:46.5]} 26. Qg6 {[%clk 0:01:17.1]} 26...
a3 {[%clk 0:02:11.9]} 27. bxa3 {[%clk 0:01:15.2]} 27... Qb6+ {[%clk 0:02:07.7]}
28. Rd4 {[%clk 0:01:15.1]} 28... Qxd4+ {[%clk 0:02:01.6]} 0-1